bitfinex-derivatives/quotes_SOLF0:USTF0_20241017
["timestamp","ask_amount","ask_price","bid_price","bid_amount"]
[1729165333774,4.82,151.56,151.51,15.84]
[1729165333980,15.84,151.59,151.52,2.7174]
[1729165334168,1.4265,151.62,151.52,2.7174]
[1729165334169,4.82,151.58,151.52,6.07264338]
[1729165334370,8.1194,151.58,151.55,3.2999]
[1729165334670,8.1194,151.58,151.56,3.3727444]
[1729165334870,8.1194,151.58,151.55,3.2999]
[1729165335373,8.1194,151.58,151.55,6.56358891]
[1729165338170,3.3002,151.55,151.52,6.018]
[1729165338577,3.3002,151.55,151.52,2.7174]
[1729165338773,3.3002,151.55,151.53,6.64034557]
[1729165339367,3.3002,151.55,151.52,3.3005]
[1729165339368,4.82,151.54,151.52,3.3005]
[1729165339771,4.82,151.54,151.52,6.53678412]
[1729165339969,8.1203,151.54,151.52,6.53678412]
[1729165340576,4.82,151.54,151.48,1.414]
[1729165340980,19.1401,151.55,151.48,1.414]
[1729165341171,23.9601,151.55,151.48,1.414]
[1729165341370,23.9601,151.55,151.52,3.3005]
[1729165341583,15.84,151.55,151.48,1.414]
[1729165341781,15.84,151.55,151.53,3.3004]
[1729165341978,20.66,151.55,151.53,3.3004]
[1729165342685,23.96,151.55,151.52,3.3006]
[1729165343475,23.96,151.55,151.48,4.78541616]
[1729165343476,3.3005,151.53,151.51,3.3009]
[1729165343680,20.66,151.55,151.48,4.78541616]
[1729165344282,23.9601,151.55,151.52,3.3005]
[1729165344480,20.66,151.55,151.48,4.78541616]
[1729165345186,3.3004,151.54,151.48,4.78541616]
[1729165345583,20.66,151.55,151.48,4.78541616]
[1729165345776,23.9602,151.55,151.52,3.3006]
[1729165346081,15.84,151.59,151.51,15.84]
[1729165346279,8.1196,151.58,151.55,3.2999]
[1729165346683,4.82,151.58,151.55,3.2999]
[1729165346884,3.2996,151.57,151.55,3.2999]
[1729165347684,3.2992,151.59,151.57,3.2995]
[1729165347889,4.82,151.58,151.51,15.84]
[1729165348579,4.82,151.58,151.56,3.2997]
[1729165348779,4.82,151.58,151.56,3.36426727]
[1729165348985,8.1195,151.58,151.51,15.84]
[1729165349187,8.1195,151.58,151.56,3.2998]
[1729165349391,8.1195,151.58,151.56,6.67793373]
[1729165349691,3.2995,151.58,151.56,3.2998]
[1729165349880,8.1195,151.58,151.51,15.84]
[1729165350077,15.84,151.61,151.53,15.84]
[1729165350282,4.82,151.59,151.53,15.84]
[1729165350480,4.82,151.59,151.54,2.8131]
[1729165350688,4.82,151.59,151.58,3.2994]
[1729165351388,15.84,151.61,151.59,3.2991]
[1729165351593,4.82,151.61,151.59,3.2991]
[1729165351785,8.1189,151.61,151.57,3.3104522]
[1729165352088,8.1189,151.61,151.58,3.2993]
[1729165352386,8.1189,151.61,151.58,6.64661766]
[1729165352590,8.1189,151.61,151.58,3.2993]
[1729165353192,8.1189,151.61,151.58,6.61261631]
[1729165353398,8.1189,151.61,151.58,3.2992]
[1729165353981,8.1189,151.61,151.58,6.53097909]
[1729165354395,3.299,151.6,151.58,6.53097909]
[1729165356901,4.82,151.61,151.58,6.53097909]
[1729165357101,8.1188,151.61,151.58,6.53097909]
[1729165357803,4.82,151.61,151.58,6.53097909]
[1729165358097,3.299,151.6,151.58,6.53097909]
[1729165358294,20.66,151.61,151.57,3.2996]
[1729165358494,3.299,151.6,151.57,6.58386661]
[1729165358696,20.66,151.61,151.57,6.58386661]
[1729165359297,3.2991,151.6,151.57,6.58386661]
[1729165359499,20.66,151.61,151.57,6.58386661]
[1729165359697,3.2992,151.59,151.57,6.58386661]
[1729165363602,20.66,151.61,151.57,3.28426661]
[1729165363804,15.84,151.6,151.54,2.8131]
[1729165364004,15.84,151.6,151.5,28.6102]
[1729165364199,15.84,151.6,151.5,29.9645]
[1729165364405,3.2998,151.57,151.54,3.3001]
[1729165364604,8.1198,151.57,151.54,3.3001]
[1729165364808,8.1198,151.57,151.52,3.3006]
[1729165365003,8.1198,151.57,151.5,9.3045]
[1729165365604,8.1198,151.57,151.54,3.3001]
[1729165365809,3.3,151.56,151.5,2.7023]
[1729165366002,4.82,151.57,151.5,2.7023]
[1729165366202,3.3001,151.55,151.53,3.3003]
[1729165366398,3.3001,151.55,151.5,2.7023]
[1729165366399,15.84,151.56,151.5,1.3543]
[1729165366603,15.84,151.56,151.51,3.3008]
[1729165366804,3.3005,151.53,151.51,3.3008]
[1729165367007,15.84,151.54,151.48,3.37141616]
[1729165367205,15.84,151.54,151.46,4.82]
[1729165367508,3.3009,151.52,151.45,7.6567]
[1729165367908,3.3009,151.52,151.49,3.3012]
[1729165368111,3.3009,151.52,151.5,3.24275254]
[1729165369015,15.84,151.52,151.45,2.8367]
[1729165369613,3.3013,151.5,151.45,2.8367]
[1729165370118,3.301,151.51,151.48,3.3015]
[1729165370415,3.301,151.51,151.49,3.30846616]
[1729165371327,15.84,151.52,151.34,9.9138]
[1729165371619,15.84,151.5,151.41,20.0954]
[1729165371821,4.82,151.49,151.41,20.0954]
[1729165372212,3.3019,151.47,151.44,3.3023]
[1729165372416,4.82,151.49,151.41,4.2554]
[1729165372620,15.84,151.47,151.4,3.24934009]
[1729165372921,20.66,151.49,151.4,2.8364]
[1729165373110,20.66,151.49,151.4,6.12438339]
[1729165373314,15.84,151.47,151.37,15.84]
[1729165373514,15.84,151.47,151.37,19.15407587]
[1729165373720,4.82,151.47,151.39,15.84]
[1729165373921,4.82,151.47,151.39,20.66]
[1729165374216,4.82,151.47,151.4,4.82]
[1729165374419,4.82,151.47,151.4,8.13373653]
[1729165374717,3.3022,151.45,151.42,3.3028]
[1729165375815,3.3024,151.44,151.41,3.303]
[1729165376325,20.66,151.47,151.41,3.303]
[1729165376823,20.66,151.47,151.4,3.31373653]
[1729165377027,20.66,151.47,151.37,4.82]
[1729165377028,4.82,151.46,151.42,3.3027]
[1729165377228,4.82,151.46,151.43,3.37089271]
[1729165377618,4.82,151.45,151.43,3.37089271]
[1729165378019,8.1222,151.45,151.43,3.37089271]
[1729165378929,4.82,151.45,151.43,6.67349271]
[1729165379126,3.3021,151.46,151.43,6.67349271]
[1729165379428,8.1221,151.46,151.43,6.67349271]
[1729165379816,15.84,151.47,151.43,3.37089271]
[1729165380021,4.82,151.46,151.44,3.3023]
[1729165380727,3.3024,151.45,151.42,3.3027]
[1729165380928,3.3024,151.45,151.43,3.36428506]
[1729165381928,8.1217,151.48,151.45,3.302]
[1729165382121,8.1217,151.48,151.46,3.23114091]
[1729165382322,3.3017,151.48,151.46,3.23114091]
[1729165382531,8.1217,151.48,151.46,3.23114091]
[1729165383026,3.3019,151.47,151.44,3.3024]
[1729165383227,15.84,151.47,151.38,15.84]
[1729165383422,15.84,151.47,151.38,19.20582264]
[1729165383729,3.3023,151.45,151.42,3.3027]
[1729165384327,4.82,151.44,151.41,3.303]
[1729165384524,4.82,151.44,151.36,18.6764]
[1729165386433,4.82,151.44,151.42,3.3027]
[1729165386637,1.4291,151.48,151.38,15.84]
[1729165386828,4.82,151.47,151.4,15.84]
[1729165387029,3.3022,151.45,151.43,3.3026]
[1729165387234,3.3022,151.45,151.44,3.30602576]
[1729165388136,4.82,151.47,151.44,3.30602576]
[1729165388137,3.3021,151.46,151.44,3.30602576]
[1729165389030,3.3022,151.45,151.44,3.30602576]
[1729165391226,3.3026,151.43,151.41,3.3029]
[1729165391838,3.3025,151.44,151.41,3.3029]
[1729165392034,15.84,151.46,151.41,3.3029]
[1729165392433,3.3026,151.44,151.41,3.3029]
[1729165394041,15.84,151.46,151.38,3.22672872]
[1729165394243,15.84,151.46,151.36,2.8364]
[1729165394636,3.3029,151.42,151.39,3.3035]
[1729165394836,3.3029,151.42,151.39,3.32552167]
[1729165395038,3.3029,151.42,151.36,2.8364]
[1729165395839,3.3029,151.42,151.4,3.3031]
[1729165396146,8.1628,151.43,151.41,3.22936439]
[1729165397146,4.86,151.46,151.41,3.25084824]
[1729165397346,4.86,151.46,151.37,15.84]
[1729165397543,20.7,151.46,151.37,15.84]
[1729165398246,3.3027,151.43,151.4,3.3031]
[1729165398448,3.3027,151.43,151.41,3.24490096]
[1729165398651,20.7,151.46,151.37,15.84]
[1729165398844,3.3026,151.44,151.42,3.3027]
[1729165399041,4.86,151.44,151.42,3.35988167]
[1729165399247,4.86,151.44,151.42,3.3027]
[1729165399552,4.86,151.44,151.42,3.2786022]
[1729165399749,4.86,151.44,151.42,3.3028]
[1729165400053,4.86,151.44,151.42,6.57578533]
[1729165400252,4.86,151.44,151.42,3.27298533]
[1729165400452,4.86,151.44,151.41,3.303]
[1729165400649,4.86,151.44,151.42,3.27001169]
[1729165401054,4.86,151.44,151.41,3.303]
[1729165401255,3.3026,151.43,151.41,6.66156005]
[1729165401454,3.3026,151.43,151.41,3.303]
[1729165401842,3.3029,151.42,151.4,3.3032]
[1729165402047,3.3029,151.42,151.41,3.2786022]
[1729165402655,4.86,151.44,151.41,3.2786022]
[1729165402857,3.3027,151.43,151.41,3.2786022]
[1729165403054,3.3027,151.43,151.32,4.86]
[1729165403253,4.86,151.44,151.27,7.7226666]
[1729165403254,15.84,151.4,151.27,7.7226666]
[1729165403554,3.3042,151.36,151.3,3.3054]
[1729165403852,15.84,151.34,151.3,3.34567428]
[1729165404049,15.84,151.34,151.31,3.3051]
[1729165404257,15.84,151.34,151.27,11.05281188]
[1729165404756,15.84,151.34,151.29,3.3055]
[1729165405147,15.84,151.34,151.27,11.05281188]
[1729165405351,3.3051,151.32,151.27,11.05281188]
[1729165405555,15.84,151.3,151.27,11.05281188]
[1729165405956,15.84,151.29,151.27,11.05281188]
[1729165406555,4.86,151.3,151.27,11.05281188]
[1729165406853,4.86,151.3,151.27,7.7226666]
[1729165407265,4.86,151.3,151.27,10.9863588]
[1729165407555,4.86,151.3,151.27,14.2923588]
[1729165407958,4.86,151.3,151.27,10.9863588]
[1729165408347,4.86,151.3,151.28,3.3058]
[1729165408751,4.86,151.3,151.27,10.9863588]
[1729165408952,4.86,151.3,151.29,3.3057]
[1729165409553,4.86,151.31,151.3,3.3053]
[1729165409954,4.86,151.32,151.27,10.9863588]
[1729165410156,4.86,151.33,151.31,3.3052]
[1729165410656,4.86,151.33,151.32,3.305]
[1729165411062,4.86,151.33,151.27,10.9863588]
[1729165411963,20.7,151.33,151.27,10.9863588]
[1729165412367,24.0049,151.33,151.29,3.3056]
[1729165413360,4.1704,151.41,151.3,15.84]
[1729165413561,15.57960221,151.42,151.33,15.84]
[1729165413762,3.3033,151.4,151.37,3.3039]
[1729165414064,4.86,151.39,151.34,1.4236]
[1729165414268,15.84,151.44,151.35,15.84]
[1729165414467,3.3029,151.42,151.35,17.2874]
[1729165414675,4.86,151.43,151.36,1.4665]
[1729165415568,3.3029,151.42,151.38,3.3037]
[1729165415771,4.86,151.41,151.38,3.3037]
[1729165418172,8.1631,151.41,151.38,3.3037]
[1729165419967,3.3031,151.41,151.38,3.3037]
[1729165420166,4.94,151.4,151.38,3.3037]
[1729165423276,3.3027,151.43,151.39,3.3033]
[1729165423477,4.94,151.42,151.39,3.3033]
[1729165423674,4.94,151.42,151.36,1.4665]
[1729165423877,3.3026,151.44,151.39,3.3033]
[1729165424072,4.94,151.41,151.39,3.3033]
[1729165425374,4.94,151.41,151.36,1.4665]
[1729165426080,4.94,151.41,151.37,3.3038]
[1729165426274,4.94,151.42,151.36,1.4665]
[1729165426775,4.94,151.42,151.39,3.3035]
[1729165427173,4.94,151.41,151.39,3.3035]
[1729165427975,4.94,151.41,151.36,1.4665]
[1729165428683,8.2433,151.41,151.38,3.3037]
[1729165428884,4.94,151.41,151.38,3.3037]
[1729165429883,4.94,151.41,151.36,1.4665]
[1729165430079,3.3027,151.43,151.36,1.4665]
[1729165430286,15.84,151.44,151.36,1.4665]
[1729165430480,4.94,151.43,151.36,1.4665]
[1729165430684,4.94,151.43,151.4,3.3032]
[1729165431386,4.94,151.42,151.4,3.3032]
[1729165431587,4.94,151.42,151.41,3.3031]
[1729165431787,4.94,151.42,151.41,6.64150539]
[1729165431983,4.94,151.42,151.41,3.3031]
[1729165432285,4.94,151.42,151.4,3.3032]
[1729165433089,4.94,151.42,151.36,1.4665]
[1729165433278,15.84,151.44,151.36,1.4665]
[1729165433474,4.94,151.43,151.36,1.4665]
[1729165434079,8.2428,151.43,151.36,1.4665]
[1729165434275,3.3028,151.43,151.36,1.4665]
[1729165434488,4.94,151.42,151.36,1.4665]
[1729165435584,4.94,151.42,151.4,3.3032]
[1729165436287,4.94,151.42,151.38,3.3037]
[1729165436288,3.3033,151.4,151.38,3.3037]
[1729165436483,20.78,151.42,151.38,3.3037]
[1729165436787,3.3033,151.41,151.38,3.3037]
[1729165437781,10.15,151.39,151.38,3.3037]
[1729165439787,10.15,151.39,151.36,3.304]
[1729165439788,13.4536,151.39,151.36,3.304]
[1729165440290,13.4536,151.39,151.37,3.3039]
[1729165440886,10.15,151.39,151.34,11.5736]
[1729165441193,10.15,151.39,151.38,3.3037]
[1729165441784,10.15,151.39,151.37,3.3038]
[1729165442392,10.15,151.39,151.33,93.77218918]
[1729165442393,10.15,151.38,151.33,103.92218918]
[1729165442593,15.09,151.38,151.33,103.92218918]
[1729165442891,10.15,151.34,151.33,93.77218918]
[1729165443100,18.3946,151.34,151.33,3.35041875]
[1729165443391,15.09,151.34,151.27,7.7226666]
[1729165443584,10.15,151.3,151.27,11.00379841]
[1729165443783,15.09,151.3,151.27,11.00379841]
[1729165443980,10.15,151.28,151.27,11.00379841]
[1729165445192,13.4559,151.28,151.24,3.3068]
[1729165445393,10.15,151.25,151.24,3.3068]
[1729165445692,4.94,151.26,151.24,3.3068]
[1729165446182,15.87,151.28,151.18,15.87]
[1729165446494,4.94,151.27,151.18,15.87]
[1729165446888,4.94,151.27,151.25,3.3065]
[1729165447187,4.94,151.27,151.25,3.24691297]
[1729165447494,4.94,151.27,151.25,3.3064]
[1729165447690,4.94,151.27,151.25,6.64988035]
[1729165447893,4.94,151.27,151.26,3.3063]
[1729165448094,4.94,151.27,151.26,6.690127]
[1729165448395,4.94,151.27,151.26,3.3063]
[1729165448694,4.94,151.28,151.27,3.3061]
[1729165448891,15.87,151.32,151.26,3.32859839]
[1729165449192,4.94,151.31,151.22,15.87]
[1729165449885,4.94,151.31,151.27,3.3059]
[1729165450088,4.94,151.31,151.27,3.33091337]
[1729165450288,4.94,151.31,151.22,15.87]
[1729165451290,4.94,151.31,151.27,3.306]
[1729165451291,8.2453,151.31,151.27,3.306]
[1729165451494,15.87,151.32,151.27,3.26478079]
[1729165451699,4.92,151.31,151.26,3.3063]
[1729165451890,15.87,151.34,151.26,3.38415543]
[1729165452199,4.92,151.33,151.31,3.3051]
[1729165452495,4.92,151.33,151.31,6.58244654]
[1729165453293,15.87,151.36,151.31,6.58244654]
[1729165453596,4.92,151.35,151.31,6.58244654]
[1729165454195,3.3048,151.33,151.31,3.27734654]
[1729165454396,3.3048,151.33,151.27,1.4524]
[1729165454689,3.3048,151.33,151.27,4.71918225]
[1729165454896,3.3048,151.33,151.29,3.3056]
[1729165455090,3.3048,151.33,151.29,6.60345668]
[1729165455285,3.3051,151.32,151.29,6.60345668]
[1729165455490,4.92,151.31,151.29,6.60345668]
[1729165456997,4.92,151.31,151.3,3.3054]
[1729165458389,4.92,151.31,151.29,6.60335668]
[1729165458594,4.92,151.31,151.29,3.3055]
[1729165459093,1.6147,151.31,151.24,15.87]
[1729165459690,1.6147,151.31,151.29,3.3055]
[1729165459884,1.6147,151.31,151.29,6.59872049]
[1729165460289,1.6147,151.31,151.3,3.3055]
[1729165460799,19.1747,151.34,151.24,15.87]
[1729165461095,19.1747,151.34,151.23,95.40180416]
[1729165461096,4.92,151.33,151.26,15.87]
[1729165461299,8.2249,151.33,151.26,3.3383012]
[1729165461488,8.2249,151.33,151.26,3.3062]
[1729165461690,8.2249,151.33,151.26,3.29531594]
[1729165461886,8.2249,151.33,151.24,15.87]
[1729165462492,8.2249,151.33,151.26,3.3062]
[1729165462692,8.2249,151.33,151.26,3.32209906]
[1729165462990,8.2249,151.33,151.24,15.87]
[1729165463190,8.2249,151.33,151.29,3.3055]
[1729165463400,8.2249,151.33,151.29,6.56775036]
[1729165463603,3.3049,151.33,151.29,3.26225036]
[1729165463797,4.92,151.32,151.24,15.87]
[1729165465097,4.92,151.33,151.27,15.87]
[1729165465294,4.92,151.33,151.28,2.7971]
[1729165465696,4.92,151.33,151.31,3.3051]
[1729165465897,19.1742,151.36,151.28,2.7971]
[1729165466101,4.92,151.35,151.28,20.0225]
[1729165466398,4.92,151.34,151.28,20.0225]
[1729165467601,4.92,151.34,151.32,3.3049]
[1729165468704,4.92,151.34,151.28,4.1525]
[1729165468908,4.92,151.34,151.33,3.3048]
[1729165469205,15.87,151.38,151.29,15.87]
[1729165469512,15.87,151.4,151.31,15.87]
[1729165469798,4.92,151.39,151.31,20.79]
[1729165470002,4.92,151.39,151.36,3.304]
[1729165470306,4.92,151.39,151.36,3.2627004]
[1729165470607,4.92,151.39,151.37,3.3038]
[1729165470808,4.92,151.39,151.38,3.30381309]
[1729165470994,15.87,151.4,151.31,20.79]
[1729165471200,20.79,151.4,151.31,20.79]
[1729165471507,20.79,151.4,151.37,3.3038]
[1729165471700,20.79,151.4,151.37,6.67470734]
[1729165471901,20.79,151.4,151.37,3.3038]
[1729165472400,20.79,151.4,151.37,6.58117201]
[1729165472907,15.87,151.4,151.37,6.58117201]
[1729165473500,19.1733,151.4,151.37,6.58117201]
[1729165475007,15.87,151.4,151.37,3.27737201]
[1729165475208,15.87,151.4,151.37,3.3039]
[1729165475407,15.87,151.4,151.37,3.33950746]
[1729165475609,15.87,151.44,151.34,15.87]
[1729165475905,15.07,151.43,151.38,10.15]
[1729165476113,15.07,151.43,151.38,13.52618719]
[1729165477108,15.07,151.43,151.38,3.37618719]
[1729165477109,10.15,151.42,151.38,3.37618719]
[1729165477297,10.15,151.42,151.37,10.15]
[1729165477502,10.15,151.42,151.4,3.3032]
[1729165477703,10.15,151.42,151.4,3.33014779]
[1729165477906,20.78,151.44,151.35,15.86]
[1729165478112,15.86,151.38,151.36,3.23762533]
[1729165478313,15.86,151.38,151.28,9.1651]
[1729165478610,3.3041,151.37,151.34,3.3046]
[1729165478803,3.3041,151.37,151.34,6.61161717]
[1729165479412,3.3041,151.37,151.34,3.30701717]
[1729165479704,4.92,151.39,151.28,9.1651]
[1729165479705,3.3044,151.35,151.28,9.1651]
[1729165480097,3.3044,151.35,151.28,12.52235274]
[1729165480512,15.86,151.36,151.28,12.52235274]
[1729165480708,19.1642,151.36,151.32,3.3049]
[1729165480914,15.86,151.36,151.28,12.52235274]
[1729165481807,15.86,151.36,151.33,3.3046]
[1729165482005,15.86,151.38,151.29,15.86]
[1729165482810,15.86,151.38,151.35,3.3043]
[1729165484512,19.1638,151.38,151.35,3.3043]
[1729165484813,15.86,151.38,151.35,3.3043]
[1729165486006,15.86,151.38,151.28,12.52235274]
[1729165486210,4.98,151.39,151.28,12.52235274]
[1729165486211,15.86,151.36,151.28,12.52235274]
[1729165486711,19.1642,151.36,151.32,3.3048]
[1729165487211,15.86,151.36,151.34,3.3046]
[1729165487610,15.86,151.38,151.34,3.3046]
[1729165488009,19.1639,151.38,151.34,3.3046]
[1729165488202,15.86,151.38,151.34,3.3046]
[1729165488713,3.304,151.37,151.34,3.3046]
[1729165488912,15.86,151.38,151.35,3.3044]
[1729165489112,15.86,151.38,151.36,3.24795049]
[1729165489412,19.1639,151.38,151.36,3.24795049]
[1729165489915,15.86,151.38,151.28,28.38235274]
[1729165490115,4.98,151.39,151.3,15.86]
[1729165490309,15.86,151.36,151.28,12.52235274]
[1729165490509,15.86,151.36,151.33,3.3046]
[1729165490713,15.86,151.36,151.28,12.52235274]
[1729165491101,15.86,151.36,151.33,3.3047]
[1729165491707,15.86,151.36,151.34,3.3046]
[1729165495912,19.1638,151.38,151.34,3.3046]
[1729165496111,19.1638,151.38,151.35,3.3044]
[1729165496811,19.1638,151.38,151.36,3.3041]
[1729165496812,15.86,151.38,151.36,3.3041]
[1729165497107,15.86,151.38,151.36,6.60361642]
[1729165498321,20.84,151.38,151.36,6.60361642]
[1729165499917,10.16,151.37,151.36,6.60361642]
[1729165500606,13.4639,151.37,151.36,3.29951642]
[1729165500820,10.16,151.37,151.28,29.29395274]
[1729165501117,10.16,151.33,151.32,3.305]
[1729165501917,10.16,151.33,151.31,3.3052]
[1729165502923,10.16,151.33,151.28,108.21555146]
[1729165503121,10.16,151.33,151.31,3.3051]
[1729165503526,3.3041,151.37,151.33,3.3047]
[1729165503820,10.16,151.35,151.3,10.16]
[1729165504119,10.16,151.35,151.32,3.3049]
[1729165504318,10.16,151.34,151.32,3.3049]
[1729165504518,10.16,151.34,151.29,10.16]
[1729165504519,10.16,151.33,151.28,98.05555146]
[1729165504713,10.16,151.33,151.31,3.305]
[1729165505215,10.16,151.33,151.32,3.305]
[1729165506923,2.7049,151.43,151.32,10.16]
[1729165507126,10.16,151.39,151.33,10.16]
[1729165507428,10.16,151.39,151.35,10.16]
[1729165507924,4.98,151.42,151.35,10.16]
[1729165508220,10.16,151.4,151.38,3.3037]
[1729165508822,3.3032,151.41,151.38,3.3037]
[1729165508823,15.14,151.41,151.38,3.3037]
[1729165509219,0.5681,151.46,151.4,3.3033]
[1729165509419,10.16,151.43,151.41,3.26921996]
[1729165509626,10.16,151.43,151.37,10.16]
[1729165509925,20.78,151.45,151.4,3.3032]
[1729165510126,20.78,151.45,151.4,6.66959423]
[1729165510326,20.78,151.45,151.36,2.8046]
[1729165510525,3.3025,151.44,151.41,3.303]
[1729165510828,3.3025,151.44,151.42,3.37399629]
[1729165512131,15.86,151.47,151.37,15.86]
[1729165512329,0.567,151.49,151.39,15.86]
[1729165512330,4.92,151.46,151.39,15.86]
[1729165512541,15.86,151.49,151.45,3.302]
[1729165512542,4.92,151.47,151.45,3.302]
[1729165512832,4.92,151.47,151.45,6.66177364]
[1729165513032,4.92,151.47,151.46,3.302]
[1729165513228,3.302,151.46,151.4,1.4176]
[1729165513535,20.78,151.47,151.43,3.3025]
[1729165513926,20.78,151.47,151.4,1.4176]
[1729165514226,20.78,151.47,151.4,4.6538064]
[1729165514421,15.86,151.44,151.4,3.2362064]
[1729165514627,15.86,151.44,151.36,7.7246]
[1729165514826,15.86,151.44,151.39,3.3033]
[1729165515027,3.3028,151.43,151.39,3.3033]
[1729165515433,3.3028,151.43,151.36,7.7246]
[1729165515827,3.3028,151.43,151.36,23.5846]
[1729165517030,3.3035,151.39,151.35,3.3042]
[1729165517237,15.86,151.4,151.33,1.4176]
[1729165518241,15.86,151.4,151.34,3.3045]
[1729165518644,15.86,151.4,151.33,1.4176]
[1729165518843,15.86,151.4,151.36,3.3041]
[1729165519040,4.92,151.4,151.33,1.4176]
[1729165519341,20.78,151.4,151.32,3.23371704]
[1729165519536,20.78,151.4,151.31,2.7383]
[1729165519537,24.0834,151.4,151.35,3.3042]
[1729165519733,24.0834,151.4,151.35,6.67620654]
[1729165519932,24.0834,151.4,151.35,3.3042]
[1729165520135,20.78,151.4,151.31,2.7383]
[1729165520344,24.0834,151.4,151.31,6.00322724]
[1729165520739,4.92,151.4,151.32,17.2251]
[1729165521243,4.92,151.4,151.37,3.3039]
[1729165521838,4.92,151.4,151.38,3.3036]
[1729165522043,4.92,151.42,151.34,20.78]
[1729165522357,15.86,151.44,151.36,15.86]
[1729165522358,20.78,151.44,151.36,15.86]
[1729165522535,24.0826,151.44,151.39,3.3034]
[1729165522935,20.78,151.44,151.39,3.3034]
[1729165523142,3.3028,151.43,151.39,6.6362985]
[1729165523350,3.3028,151.43,151.39,3.3034]
[1729165523947,3.3028,151.43,151.39,6.63497671]
[1729165526553,3.3028,151.43,151.4,3.3033]
[1729165527051,15.86,151.42,151.36,3.304]
[1729165527253,15.86,151.4,151.36,3.304]
[1729165527448,20.78,151.4,151.36,3.304]
[1729165527642,4.92,151.4,151.38,3.3036]
[1729165527843,4.92,151.4,151.39,3.2630732]
[1729165528355,4.92,151.4,151.39,6.5665732]
[1729165528655,4.92,151.4,151.39,3.3035]
[1729165529149,4.92,151.4,151.39,6.6386045]
[1729165529347,4.92,151.4,151.39,3.3035]
[1729165529752,4.92,151.4,151.38,3.3036]
[1729165533056,4.92,151.4,151.32,2.7768]
[1729165533452,3.3037,151.39,151.34,3.3045]
[1729165533657,3.3037,151.39,151.32,2.7768]
[1729165535261,20.78,151.4,151.32,2.7768]
[1729165535563,3.3041,151.37,151.32,2.7768]
[1729165536060,10.16,151.36,151.32,2.7768]
[1729165536561,10.16,151.36,151.34,3.3046]
[1729165537563,10.16,151.35,151.33,3.3047]
[1729165537963,10.16,151.36,151.32,1.4117]
[1729165538159,1.3969,151.45,151.34,10.16]
[1729165538363,10.16,151.39,151.34,10.16]
[1729165538560,1.3969,151.45,151.34,10.16]
[1729165538561,10.16,151.38,151.34,10.16]
[1729165538758,10.16,151.38,151.35,3.3042]
[1729165539355,10.16,151.37,151.33,10.16]
[1729165539555,4.92,151.4,151.32,1.4117]
[1729165539556,10.16,151.36,151.32,1.4117]
[1729165539768,15.88,151.38,151.32,1.4117]
[1729165541468,3.3041,151.37,151.33,3.3046]
[1729165541670,3.3041,151.37,151.32,1.4117]
[1729165541971,3.3041,151.37,151.33,3.3047]
[1729165542359,3.3041,151.37,151.32,1.4117]
[1729165542559,4.92,151.4,151.32,1.4117]